fUSD/lending_fUSD_20250724
["ID","MTS","AMOUNT","RATE_DAILY","PERIOD"]
[374557251,1753353043240,-764.0,0.00022899,2]
[374557253,1753353043249,-764.0,0.00022899,2]
[374557254,1753353043259,-764.0,0.00022899,2]
[374557256,1753353043270,-764.0,0.00022899,2]
[374557259,1753353043281,-764.0,0.00022899,2]
[374557261,1753353043291,-764.0,0.00022899,2]
[374557263,1753353043300,-500.0,0.00022899,2]
[374557264,1753353043310,-320.25242339,0.000229,8]
[374557267,1753353043321,-150.0,0.00022901,4]
[374557269,1753353043330,-234.88270645,0.00022908,4]
[374557271,1753353043340,-24379.58558689,0.00022931,2]
[374557273,1753353043350,-194.55145512,0.00022932,4]
[374557275,1753353043359,-234.88270645,0.00022932,4]
[374557277,1753353043369,-267.734835,0.00022932,4]
[374557279,1753353043378,-214.88628144,0.00022932,4]
[374557281,1753353043388,-299.06098312,0.00022932,4]
[374557283,1753353043398,-156.69618993,0.00022932,4]
[374557285,1753353043407,-185.44625183,0.00022932,4]
[374557287,1753353043417,-248.61615206,0.00022932,4]
[374557289,1753353043427,-160.6193086,0.00022932,4]
[374557291,1753353043437,-154.47495337,0.00022932,4]
[374557293,1753353043446,-175.77502358,0.00022932,4]
[374557295,1753353043456,-150.0,0.00022932,2]
[374557297,1753353043465,-256.54055567,0.00022932,2]
[374557299,1753353043475,-151.28033318,0.00022936,2]
[374557301,1753353043484,-10000.0,0.00022936,2]
[374557303,1753353043493,-300.0,0.00022945,2]
[374557305,1753353043502,-666.0,0.00022945,2]
[374557307,1753353043513,-666.0,0.00022945,2]
[374557309,1753353043523,-300.0,0.00022945,2]
[374557311,1753353043532,-300.0,0.00022945,2]
[374557313,1753353043542,-670.91034485,0.00022945,2]
[374557315,1753353043552,-669.94221482,0.00022945,2]
[374557317,1753353043562,-300.0,0.00022945,2]
[374557319,1753353043572,-150.0,0.00022945,2]
[374557321,1753353043581,-2685.52489433,0.00022945,2]
[374557323,1753353043591,-481.37745153,0.00022945,2]
[374557325,1753353043600,-738.59,0.00022945,2]
[374557327,1753353043612,-150.0,0.00022945,2]
[374557329,1753353043622,-588.0,0.00022945,2]
[374557331,1753353043632,-150.0,0.00022945,2]
[374557333,1753353043642,-500.0,0.00022945,2]
[374557335,1753353043652,-150.0,0.00022945,2]
[374557337,1753353043661,-300.0,0.00022945,2]
[374557339,1753353043672,-300.0,0.00022945,2]
[374557341,1753353043682,-222708.50193389,0.00022946,2]
[374557343,1753353043692,-267.6729928,0.00022946,2]
[374557346,1753353043702,-2232.69808129,0.00022946,2]
[374557348,1753353043713,-3346027.53870412,0.00022946,5]
[374557405,1753353044268,-255.16,0.00021931,2]
[374557407,1753353044278,-204.11978277,0.00022377,2]
[374557409,1753353044287,-2868115.4022665,0.00022946,5]
[374557411,1753353044299,-867.43637529,0.00022946,5]
[374557526,1753353045278,-10496.24380002,0.00022946,2]
[374557555,1753353045540,-408609.43449931,0.00022946,2]
[374557558,1753353045557,-5985.28080001,0.00022946,2]
[374557560,1753353045569,-1757.46828061,0.00022946,2]
[374557562,1753353045582,-277160.38734564,0.00022946,2]
[374557616,1753353046042,-902.52143999,0.00022946,2]
[374557623,1753353046101,-874.275,0.00022946,2]
[374557627,1753353046131,-7048.0,0.00022946,2]
[374557637,1753353046216,-295.802375,0.00022946,2]
[374557644,1753353046274,-5949.64095215,0.00022946,2]
[374559815,1753353133807,1150.36,0.00027136,120]
[374559816,1753353286280,1178.0,0.00027397,120]
[374559822,1753353744728,152.04,0.00013699,2]
[374559831,1753353976203,200.0,0.00013631,2]
[374559832,1753354026106,505.0,0.00027397,120]
[374559844,1753354108976,525.96,0.00025748,120]
[374559850,1753354232404,-491.6774218,0.00019178,2]
[374559851,1753354232416,-188.6025782,0.00019178,2]
[374559852,1753354232425,-464.57991482,0.00019922,2]
[374559853,1753354232438,-37.42008518,0.00019922,2]
[374559854,1753354232448,-525.96,0.00020599,2]
[374559855,1753354232459,-300.0,0.00020625,2]
[374559856,1753354232469,-300.0,0.00020625,2]
[374559857,1753354232479,-23862.22,0.00020626,2]
[374559858,1753354232489,-163.89,0.00020638,2]
[374559859,1753354232498,-150.0,0.00020638,2]
[374559860,1753354232508,-150.89693109,0.00020638,2]
[374559861,1753354232518,-150.0,0.00020638,2]
[374559862,1753354232527,-150.0,0.00020638,2]
[374559863,1753354232537,-150.0,0.00020638,2]
[374559864,1753354232547,-150.0,0.00020638,2]
[374559865,1753354232556,-267.73483499,0.00020638,2]
[374559866,1753354232568,-150.0,0.00020638,2]
[374559867,1753354232577,-150.0,0.00020638,2]
[374559869,1753354232587,-156.69618993,0.00020638,2]
[374559870,1753354232597,-160.6193086,0.00020638,2]
[374559871,1753354232607,-150.0,0.00020638,2]
[374559872,1753354232616,-14.12994557,0.00020638,2]
[374559873,1753354232635,-399.81,0.00020579,2]
[374559874,1753354232646,-140.3450078,0.00020638,2]
[374559875,1753354232656,-150.0,0.00020638,2]
[374559876,1753354232666,-150.0,0.00020665,4]
[374559877,1753354232676,-200.0,0.00020673,2]
[374559915,1753354233055,-98.0462894,0.00020692,4]
[374559917,1753354238248,-51.9537106,0.00020692,4]
[374559918,1753354238259,-150.0,0.00020719,4]
[374559919,1753354238269,-680.28,0.00020744,2]
[374559920,1753354238279,-150.0,0.00020746,4]
[374559921,1753354238290,-150.0,0.00020773,4]
[374559922,1753354238301,-150.0,0.000208,4]
[374559923,1753354238311,-150.0,0.00020827,4]
[374559924,1753354238322,-150.0,0.00020854,4]
[374559925,1753354238333,-150.0,0.00020881,4]
[374559926,1753354238343,-150.0,0.00020908,4]
[374559927,1753354238353,-150.0,0.00020925,4]
[374559928,1753354238363,-150.0,0.00020935,4]
[374559929,1753354238372,-150.0,0.00020962,4]
[374559930,1753354238382,-150.0,0.00020989,4]
[374559931,1753354238395,-150.0,0.00021016,4]
[374559932,1753354238405,-150.0,0.00021021,4]
[374559933,1753354238414,-150.0,0.00021043,4]
[374559934,1753354238425,-150.0,0.0002107,4]
[374559935,1753354238435,-150.0,0.00021097,4]
[374559936,1753354238445,-150.0,0.00021124,4]
[374559937,1753354238454,-502.0,0.00021136,3]
[374559938,1753354238465,-150.0,0.00021151,4]
[374559939,1753354238475,-150.0,0.00021178,4]
[374559940,1753354238485,-150.0,0.00021205,4]
[374559941,1753354238495,-150.0,0.00021212,4]
[374559942,1753354238504,-150.0,0.00021232,4]
[374559943,1753354238514,-150.0,0.00021259,4]
[374559944,1753354238524,-150.0,0.00021286,4]
[374559945,1753354238535,-250.0,0.00021304,2]
[374559946,1753354238545,-150.0,0.00021313,4]
[374559947,1753354238555,-150.0,0.0002134,4]
[374559949,1753354238565,-11968.04138121,0.0002134,10]
[374559951,1753354238575,-150.0,0.00021367,4]
[374559952,1753354238584,-150.0,0.00021394,4]
[374559953,1753354238594,-150.0,0.00021403,4]
[374559954,1753354238603,-150.0,0.00021403,4]
[374559955,1753354238613,-150.0,0.00021403,4]
[374559957,1753354238623,-150.0,0.00021421,4]
[374559959,1753354238636,-150.0,0.00021448,4]
[374559961,1753354238646,-150.0,0.00021475,4]
[374559964,1753354238655,-150.0,0.00021498,4]
[374559966,1753354238666,-150.0,0.00021502,4]
[374559968,1753354238675,-250.0,0.00021525,2]
[374559970,1753354238685,-150.0,0.00021529,4]
[374559972,1753354238696,-185.95,0.00021553,2]
[374559974,1753354238705,-150.0,0.00021556,4]
[374559976,1753354238715,-150.0,0.00021583,4]
[374559978,1753354238725,-2803.98,0.00021595,2]
[374559980,1753354238735,-596.91,0.00021601,2]
[374559982,1753354238744,-399.81,0.00021608,2]
[374559984,1753354238754,-150.0,0.0002161,4]
[374559986,1753354238763,-489.01,0.00021626,2]
[374559988,1753354238772,-428.58,0.00021627,2]
[374559990,1753354238782,-150.0,0.00021637,4]
[374559992,1753354238792,-1000.0,0.00021656,2]
[374559994,1753354238801,-150.0,0.00021664,4]
[374559996,1753354238811,-150.0,0.00021691,4]
[374559998,1753354238820,-1150.36,0.00021709,2]
[374560000,1753354238830,-150.0,0.00021717,4]
[374560002,1753354238839,-150.0,0.00021744,4]
[374560004,1753354238848,-150.0,0.00021771,4]
[374560006,1753354238858,-150.0,0.00021785,4]
[374560008,1753354238867,-150.0,0.00021785,4]
[374560010,1753354238876,-150.0,0.00021785,4]
[374560012,1753354238888,-150.0,0.00021785,4]
[374560014,1753354238897,-150.0,0.00021785,4]
[374560016,1753354238907,-150.0,0.00021798,4]
[374560018,1753354238916,-150.0,0.00021825,4]
[374560020,1753354238925,-150.0,0.00021852,4]
[374560022,1753354238935,-150.0,0.00021879,4]
[374560024,1753354238944,-150.0,0.00021906,4]
[374560026,1753354238953,-5000.0,0.00021918,2]
[374560028,1753354238963,-150.0,0.00021933,4]
[374560030,1753354238973,-150.0,0.0002196,4]
[374560032,1753354238982,-168.75,0.00021964,2]
[374560034,1753354238991,-150.0,0.00021987,4]
[374560036,1753354239000,-2228.6211804,0.00022,12]
[374560038,1753354239010,-406.0,0.00022,2]
[374560040,1753354239019,-150.0,0.00022014,4]
[374560042,1753354239028,-150.0,0.00022041,4]
[374560044,1753354239038,-150.0,0.00022068,4]
[374560046,1753354239047,-150.0,0.00022072,4]
[374560048,1753354239057,-150.0,0.00022095,4]
[374560050,1753354239068,-150.0,0.00022122,4]
[374560052,1753354239077,-150.0,0.00022149,4]
[374560054,1753354239086,-150.0,0.00022167,4]
[374560056,1753354239096,-150.0,0.00022167,4]
[374560058,1753354239105,-150.0,0.00022167,4]
[374560060,1753354239114,-150.0,0.00022176,4]
[374560062,1753354239124,-300.0,0.000222,8]
[374560064,1753354239135,-150.0,0.00022203,4]
[374560066,1753354239145,-150.0,0.0002223,4]
[374560068,1753354239155,-150.0,0.00022257,4]
[374560070,1753354239164,-150.0,0.00022284,4]
[374560072,1753354239174,-700.0,0.000223,8]
[374560074,1753354239183,-680.28,0.0002231,2]
[374560076,1753354239192,-150.0,0.00022311,4]
[374560078,1753354239202,-150.0,0.00022338,4]
[374560080,1753354239211,-502.0,0.00022351,5]
[374560082,1753354239221,-150.0,0.00022358,4]
[374560084,1753354239230,-150.0,0.00022365,4]
[374560086,1753354239240,-150.0,0.00022392,4]
[374560088,1753354239250,-1100.0,0.000224,8]
[374560090,1753354239259,-666.0,0.00022409,3]
[374560092,1753354239269,-150.0,0.00022419,4]
[374560094,1753354239278,-420.0,0.00022445,2]
[374560096,1753354239288,-420.0,0.00022445,2]
[374560129,1753354239626,-150.0,0.00022446,4]
[374560131,1753354239638,-150.0,0.00022473,4]
[374560133,1753354239648,-150.0,0.000225,4]
[374560135,1753354239658,-2038.07,0.000225,2]
[374560137,1753354239668,-1500.0,0.000225,8]
[374560139,1753354239678,-150.0,0.00022527,4]
[374560141,1753354239687,-150.0,0.00022549,4]
[374560143,1753354239697,-150.0,0.00022554,4]
[374560145,1753354239707,-150.0,0.00022581,4]
[374560147,1753354239716,-1900.0,0.000226,8]
[374560149,1753354239726,-150.0,0.00022608,4]
[374560151,1753354239735,-3281.663,0.00022626,2]
[374560153,1753354239744,-192.094,0.00022626,2]
[374560155,1753354239754,-150.0,0.00022635,4]
[374560157,1753354239763,-399.81,0.00022637,2]
[374560159,1753354239773,-150.0,0.00022645,4]
[374560161,1753354239782,-150.0,0.00022662,4]
[374560163,1753354239792,-150.0,0.00022689,4]
[374560165,1753354239802,-373.14615017,0.00022699,2]
[374560167,1753354239812,-42077.73,0.000227,2]
[374560169,1753354239822,-300.0,0.000227,8]
[374560171,1753354239831,-150.0,0.00022716,4]
[374560173,1753354239841,-150.0,0.00022743,4]
[374560175,1753354239851,-579.65180388,0.00022746,2]
[374560177,1753354239860,-579.65180388,0.00022757,2]
[374560179,1753354239871,-579.65180388,0.00022768,2]
[374560181,1753354239880,-150.0,0.0002277,4]
[374560183,1753354239891,-579.65180388,0.00022779,2]
[374560185,1753354239900,-579.65180388,0.0002279,2]
[374560187,1753354239910,-150.0,0.00022797,4]
[374560189,1753354239919,-300.0,0.000228,8]
[374560191,1753354239929,-579.65180388,0.00022802,2]
[374560193,1753354239939,-579.65180388,0.00022813,2]
[374560195,1753354239948,-150.0,0.00022824,4]
[374560197,1753354239958,-579.65180388,0.00022824,2]
[374560199,1753354239967,-579.65180388,0.00022835,2]
[374560201,1753354239977,-2998.79748042,0.0002284,2]
[374560203,1753354239986,-156.7019426,0.0002284,2]
[374560205,1753354239995,-2998.79748042,0.00022841,2]
[374560207,1753354240005,-2998.79748042,0.00022841,2]
[374560209,1753354240015,-2998.79748042,0.00022842,2]
[374560211,1753354240024,-2998.79748042,0.00022843,2]
[374560213,1753354240034,-2998.79748042,0.00022843,2]
[374560215,1753354240044,-2998.79748042,0.00022844,2]
[374560218,1753354240054,-2998.79748042,0.00022845,2]
[374560220,1753354240064,-2998.79748042,0.00022845,2]
[374560222,1753354240074,-203.5586459,0.00022846,2]
[374560224,1753354240084,-29358.106497,0.00022846,2]
[374560226,1753354240094,-2998.79748042,0.00022846,2]
[374560228,1753354240103,-156.70194259,0.00022846,2]
[374560230,1753354240113,-579.65180388,0.00022846,2]
[374560232,1753354240123,-150.0,0.00022846,2]
[374560234,1753354240132,-150.0,0.00022846,2]
[374560236,1753354240141,-150.0,0.00022846,2]
[374560238,1753354240151,-150.0,0.00022846,2]
[374560241,1753354240160,-150.0,0.00022846,2]
[374560243,1753354240170,-150.0,0.00022846,2]
[374560245,1753354240179,-151.0136959,0.00022846,2]
[374560247,1753354240189,-150.0,0.00022851,4]
[374560249,1753354240199,-229.64,0.00022859,2]
[374560251,1753354240208,-150.0,0.00022878,4]
[374560254,1753354240219,-200.0,0.0002289,2]
[374560256,1753354240228,-331.51,0.0002289,2]
[374560258,1753354240238,-764.0,0.00022899,2]
[374560260,1753354240247,-764.0,0.00022899,2]
[374560262,1753354240257,-764.0,0.00022899,2]
[374560264,1753354240267,-764.0,0.00022899,2]
[374560266,1753354240277,-764.0,0.00022899,2]
[374560268,1753354240286,-764.0,0.00022899,2]
[374560270,1753354240296,-764.0,0.00022899,2]
[374560272,1753354240305,-764.0,0.00022899,2]
[374560274,1753354240315,-764.0,0.00022899,2]
[374560276,1753354240325,-764.0,0.00022899,2]
[374560278,1753354240334,-150.0,0.00022899,2]
[374560280,1753354240343,-150.0,0.00022899,2]
[374560282,1753354240353,-150.0,0.00022899,2]
[374560284,1753354240363,-151.16382326,0.00022899,2]
[374560286,1753354240372,-500.0,0.00022899,2]
[374560288,1753354240383,-794.0,0.00022899,2]
[374560290,1753354240396,-150.0,0.00022899,2]
[374560292,1753354240405,-150.0,0.00022899,2]
[374560293,1753354240415,-150.0,0.00022899,2]
[374560296,1753354240425,-150.0,0.00022899,2]
[374560298,1753354240435,-150.0,0.00022899,2]
[374560300,1753354240444,-256.54055567,0.00022899,2]
[374560302,1753354240454,-150.0,0.00022899,2]
[374560304,1753354240463,-150.0,0.00022899,2]
[374560306,1753354240474,-238.49654921,0.00022899,2]
[374560308,1753354240482,-150.0,0.00022899,2]
[374560310,1753354240492,-500.0,0.00022899,2]
[374560312,1753354240501,-771.0,0.00022899,2]
[374560314,1753354240511,-150.0,0.00022899,2]
[374560316,1753354240521,-150.0,0.00022899,2]
[374560318,1753354240530,-150.84906477,0.00022899,2]
[374560320,1753354240540,-150.0,0.00022899,2]
[374560322,1753354240550,-150.0,0.00022899,2]
[374560324,1753354240561,-4500.0,0.000229,3]
[374560326,1753354240570,-300.0,0.000229,8]
[374560328,1753354240580,-150.0,0.00022905,4]
[374560330,1753354240589,-104643.28387887,0.0002293,2]
[374560332,1753354240599,-194.55145512,0.00022932,4]
[374560334,1753354240608,-290.2601086,0.00022932,4]
[374560336,1753354240618,-299.06098312,0.00022932,4]
[374560338,1753354240628,-214.88628143,0.00022932,4]
[374560340,1753354240640,-185.44625183,0.00022932,4]
[374560342,1753354240650,-248.61615206,0.00022932,4]
[374560344,1753354240660,-175.77502358,0.00022932,4]
[374560347,1753354240670,-161.90817826,0.00022932,4]
[374560350,1753354240680,-151.28033318,0.00022936,2]
[374560353,1753354240690,-12815.48335638,0.00022938,2]
[374560356,1753354240699,-150.0,0.00022939,2]
[374560359,1753354240710,-150.0,0.00022939,2]
[374560362,1753354240720,-150.0,0.00022939,2]
[374560365,1753354240730,-150.0,0.00022939,2]
[374560368,1753354240739,-500.0,0.00022939,2]
[374560371,1753354240749,-150.0,0.00022939,2]
[374560374,1753354240759,-150.0,0.00022939,2]
[374560377,1753354240769,-321464.338659,0.0002294,2]
[374560380,1753354240780,-7024.07935124,0.0002294,2]
[374560383,1753354240798,-6120.7050769,0.0002294,2]
[374560386,1753354240808,-738.59,0.00022944,2]
[374560389,1753354240818,-666.0,0.00022945,2]
[374560392,1753354240829,-300.0,0.00022945,2]
[374560396,1753354240839,-666.0,0.00022945,2]
[374560398,1753354240849,-300.0,0.00022945,2]
[374560402,1753354240859,-300.0,0.00022945,2]
[374560405,1753354240868,-150.52571971,0.00022945,2]
[374560408,1753354240878,-150.0,0.00022945,2]
[374560411,1753354240890,-150.0,0.00022945,2]
[374560414,1753354240899,-150.0,0.00022945,2]
[374560417,1753354240909,-150.0,0.00022945,2]
[374560420,1753354240919,-2685.52489433,0.00022945,2]
[374560423,1753354240929,-481.37745153,0.00022945,2]
[374560426,1753354240939,-150.0,0.00022945,2]
[374560429,1753354240952,-666.0,0.00022945,2]
[374560432,1753354240962,-300.0,0.00022945,2]
[374560435,1753354240971,-666.0,0.00022945,2]
[374560437,1753354240981,-300.0,0.00022945,2]
[374560439,1753354240990,-300.0,0.00022945,2]
[374560441,1753354241000,-2232.69808129,0.00022946,2]
[374560443,1753354241010,-898550.66115089,0.00022946,2]
[374560445,1753354241019,-50020.99191778,0.00022946,2]
[374560448,1753354241029,-2264286.03993779,0.00022946,5]
[374560451,1753354241044,-3549.2,0.00022946,5]
[374560462,1753354241091,-222.90516653,0.000219,6]
[374560465,1753354241103,-222.90516653,0.000229,8]
[374560468,1753354241113,-2936727.15348716,0.00022946,5]
[374560724,1753354243447,-278.19334511,0.00022846,2]
[374560726,1753354243457,-43.99165339,0.00022946,5]
[374560976,1753354246331,-666.0,0.00022469,3]
[374560977,1753354246341,-4514.54859852,0.00022946,5]
[374560978,1753354246438,-2939.63944018,0.00022946,5]
[374560980,1753354246492,-56695.31311216,0.00022946,5]
[374560998,1753354454145,399.745,0.00027397,120]
[374560999,1753354480349,1000.0,0.00027397,120]
[374561000,1753354488606,1000.0,0.00027397,120]
[374561001,1753354495885,1000.0,0.00027397,120]
[374561002,1753354503520,1000.0,0.00027397,120]
[374561003,1753354520047,1000.0,0.00027397,120]
[374561004,1753354536152,1000.0,0.00027397,120]
[374561005,1753354555739,292.0,0.00027397,120]
[374561008,1753354713570,152.04,0.00013699,2]
[374561013,1753354972237,249.15,0.0002739,120]
[374561014,1753355033768,1343.59337981,0.000273,120]
[374561015,1753355109199,690.21,0.00027066,120]
[374561038,1753355431486,-1200.0,0.00019177,2]
[374561039,1753355431497,-300.0,0.00019177,2]
[374561040,1753355431507,-300.0,0.00019177,2]
[374561041,1753355431516,-10051.23769781,0.00019178,2]
[374561042,1753355431526,-747.42,0.00019178,2]
[374561043,1753355431536,-503.0,0.00020565,2]
[374561044,1753355431546,-150.0,0.00020638,2]
[374561045,1753355431556,-150.0,0.00020638,2]
[374561046,1753355431566,-150.0,0.00020638,2]
[374561047,1753355431576,-150.0,0.00020638,2]
[374561048,1753355431585,-150.00000001,0.00020638,2]
[374561049,1753355431595,-150.0,0.00020638,2]
[374561050,1753355431605,-150.0,0.00020638,2]
[374561051,1753355431615,-150.0,0.00020638,2]
[374561052,1753355431626,-150.0,0.00020638,2]
[374561053,1753355431636,-150.0,0.00020638,2]
[374561054,1753355431646,-150.0,0.00020638,2]
[374561055,1753355431657,-161.90817826,0.00020638,2]
[374561056,1753355431666,-741.66084732,0.00020745,2]
[374561057,1753355431678,-5.75915268,0.00020745,2]
[374561058,1753355431688,-213.13,0.00020745,2]
[374561059,1753355431697,-648.93,0.00020749,2]
[374561060,1753355431708,-150.0,0.00020829,4]
[374561061,1753355431718,-150.0,0.00020868,4]
[374561062,1753355431727,-420.0,0.00020899,2]
[374561063,1753355431737,-191.0,0.00020899,2]
[374561064,1753355431749,-218.41696931,0.000209,4]
[374561065,1753355431759,-666.0,0.00020922,3]
[374561066,1753355431769,-150.0,0.00020925,4]
[374561067,1753355431778,-150.0,0.00020925,4]
[374561068,1753355431788,-157.0,0.00021,2]
[374561069,1753355431797,-150.0,0.00021021,4]
[374561070,1753355431807,-157.18,0.00021032,2]
[374561071,1753355431817,-691.65901837,0.00021035,2]
[374561072,1753355431834,-660.46,0.00021035,2]
[374561073,1753355431847,-498.36997767,0.00021035,2]
[374561415,1753355437401,-671.674054,0.00021035,2]
[374561416,1753355437455,-7882.15694996,0.00021035,2]
[374561417,1753355437465,-157.18,0.00021067,2]
[374561418,1753355437474,-293.53,0.00021078,2]
[374561419,1753355437483,-150.0,0.00021097,4]
[374561420,1753355437493,-157.18,0.00021102,2]
[374561421,1753355437503,-218.41696931,0.00021122,4]
[374561422,1753355437514,-157.18,0.00021138,2]
[374561423,1753355437523,-150.0,0.00021148,4]
[374561424,1753355437533,-157.18,0.00021173,2]
[374561425,1753355437543,-157.18,0.00021208,2]
[374561426,1753355437553,-150.0,0.00021212,4]
[374561427,1753355437562,-150.0,0.00021212,4]
[374561428,1753355437573,-150.0,0.00021212,4]
[374561429,1753355437582,-150.0,0.00021221,4]
[374561430,1753355437592,-157.18,0.00021243,2]
[374561431,1753355437602,-150.0,0.00021257,4]
[374561432,1753355437611,-150.0,0.00021326,4]
[374561433,1753355437621,-150.0,0.0002133,4]
[374561434,1753355437630,-218.41696931,0.00021344,5]
[374561435,1753355437641,-150.0,0.00021366,4]
[374561436,1753355437651,-150.0,0.00021403,4]
[374561437,1753355437662,-150.0,0.00021403,4]
[374561438,1753355437672,-150.0,0.00021403,4]
[374561439,1753355437683,-150.0,0.00021439,4]
[374561440,1753355437692,-150.0,0.00021476,4]
[374561441,1753355437702,-150.0,0.00021498,4]
[374561442,1753355437712,-150.0,0.00021498,4]
[374561443,1753355437724,-150.0,0.00021548,4]
[374561444,1753355437734,-150.0,0.00021556,4]
[374561445,1753355437744,-218.41696931,0.00021567,5]
[374561446,1753355437758,-150.0,0.00021585,4]
[374561447,1753355437768,-150.0,0.00021594,4]
[374561448,1753355437778,-150.0,0.00021621,4]
[374561450,1753355437788,-690.21,0.00021653,2]
[374561452,1753355437800,-502.05899667,0.00021657,2]
[374561454,1753355437810,-500.0,0.00021657,2]
[374561456,1753355437819,-150.0,0.00021658,4]
[374561458,1753355437831,-150.0,0.00021694,4]
[374561460,1753355437842,-185.95,0.00021719,2]
[374561462,1753355437851,-1000.0,0.00021719,2]
[374561464,1753355437861,-150.0,0.0002173,4]
[374561466,1753355437870,-180.0,0.00021748,7]
[374561468,1753355437880,-150.0,0.00021765,2]
[374561470,1753355437890,-150.0,0.00021767,4]
[374561472,1753355437901,-250.0,0.00021769,2]
[374561474,1753355437913,-150.0,0.00021785,4]
[374561476,1753355437923,-150.0,0.00021785,4]
[374561478,1753355437933,-150.0,0.00021785,4]
[374561480,1753355437943,-150.0,0.00021785,4]
[374561482,1753355437953,-150.0,0.00021785,4]
[374561484,1753355437963,-218.41696931,0.00021789,6]
[374561486,1753355437973,-150.0,0.00021803,4]
[374561488,1753355437982,-150.0,0.0002184,4]
[374561490,1753355437992,-150.0,0.00021876,4]
[374561492,1753355438001,-503.0,0.0002188,3]
[374561494,1753355438011,-150.0,0.00021912,4]
[374561497,1753355438021,-5000.0,0.00021918,2]
[374561499,1753355438030,-150.0,0.00021949,4]
[374561501,1753355438040,-150.0,0.00021976,4]
[374561503,1753355438049,-150.0,0.00021985,4]
[374561505,1753355438059,-291.55372851,0.00022,2]
[374561507,1753355438068,-20802.30704746,0.00022,2]
[374561508,1753355438077,-434.0,0.00022,2]
[374561510,1753355438087,-163.87,0.00022003,2]
[374561513,1753355438097,-218.41696931,0.00022011,6]
[374561514,1753355438106,-150.0,0.00022014,4]
[374561516,1753355438116,-150.0,0.00022022,4]
[374561518,1753355438125,-150.0,0.00022058,4]
[374561520,1753355438135,-150.0,0.00022072,4]
[374561522,1753355438145,-150.0,0.00022072,4]
[374561525,1753355438155,-150.0,0.00022094,4]
[374561526,1753355438165,-150.0,0.00022131,4]
[374561528,1753355438175,-293.53,0.00022132,2]
[374561531,1753355438184,-1174.93,0.00022167,2]
[374561532,1753355438194,-714.51,0.00022167,2]
[374561534,1753355438203,-150.0,0.00022167,2]
[374561536,1753355438213,-150.0,0.00022167,4]
[374561538,1753355438222,-150.0,0.00022167,4]
[374561540,1753355438232,-150.0,0.00022167,4]
[374561542,1753355438242,-1000.0,0.000222,2]
[374561544,1753355438251,-150.0,0.00022204,4]
[374561546,1753355438261,-104643.28387887,0.00022212,2]
[374561548,1753355438271,-156.587,0.00022222,2]
[374561550,1753355438280,-3982.97228334,0.00022222,2]
[374561552,1753355438291,-9216.856,0.00022222,2]
[374561554,1753355438300,-231.28369723,0.00022222,2]
[374561556,1753355438311,-163.87,0.00022223,2]
[374561558,1753355438322,-218.41696931,0.00022233,6]
[374561560,1753355438332,-150.0,0.0002224,4]
[374561562,1753355438341,-150.0,0.00022244,4]
[374561564,1753355438351,-500.0,0.00022273,2]
[374561566,1753355438360,-500.0,0.00022273,2]
[374561568,1753355438370,-221.99511257,0.00022273,2]
[374561570,1753355438380,-500.60786409,0.00022273,2]